fUST/lending_fUST_20240923
["ID","MTS","AMOUNT","RATE_DAILY","PERIOD"]
[338981826,1727099431813,-500.0,0.00030292,2]
[338981827,1727099431823,-104.53844165,0.00030292,2]
[338981880,1727099438000,-159.788,0.00030293,25]
[338981882,1727099438011,-500.83800138,0.000303,5]
[338981884,1727099438020,-250.0,0.00030358,2]
[338981886,1727099438029,-250.0,0.00030438,2]
[338981888,1727099438039,-250.0,0.00030519,2]
[338981890,1727099438048,-250.0,0.000306,2]
[338981892,1727099438057,-250.0,0.00030681,2]
[338981894,1727099438066,-250.0,0.00030762,2]
[338981896,1727099438075,-250.0,0.00030843,2]
[338981898,1727099438084,-250.0,0.00030923,2]
[338981900,1727099438094,-250.0,0.00031004,2]
[338981902,1727099438103,-251.909922,0.000314,5]
[338981904,1727099438112,-500.0,0.000314,5]
[338981906,1727099438121,-407.187475,0.00031401,2]
[338981908,1727099438130,-3615.0313343,0.00031614,2]
[338981910,1727099438139,-408.37219219,0.00031948,5]
[338981912,1727099438148,-151.0,0.00032301,120]
[338981914,1727099438158,-560.0,0.00032637,2]
[338981916,1727099438167,-821.3279064,0.0003287,45]
[338981918,1727099438176,-411.8657486,0.0003287,45]
[338981920,1727099438187,-411.8657486,0.0003287,45]
[338981922,1727099438199,-411.8657486,0.0003287,30]
[338981924,1727099438209,-411.8657486,0.0003287,30]
[338981926,1727099438218,-411.8657486,0.0003287,30]
[338981928,1727099438227,-500.0,0.00032876,30]
[338981930,1727099438237,-500.0,0.00032876,30]
[338981932,1727099438246,-418.5047238,0.00032959,2]
[338981934,1727099438255,-153.0,0.00032959,2]
[338981936,1727099438265,-153.0,0.00032959,2]
[338981939,1727099438282,-208.977489,0.00032959,2]
[338981942,1727099438303,-208.977489,0.00032959,2]
[338981945,1727099438320,-208.977489,0.00032959,2]
[338981948,1727099438340,-212.8430878,0.00032959,2]
[338981951,1727099438359,-347.590462,0.00033165,2]
[338981954,1727099438378,-560.0,0.0003332,2]
[338981957,1727099438395,-500.0,0.00033328,7]
[338981959,1727099438413,-500.0,0.00033328,7]
[338981963,1727099438440,-500.0,0.00033328,7]
[338981966,1727099438456,-500.0,0.00033328,7]
[338981969,1727099438474,-257.84896523,0.00033328,7]
[338981972,1727099438495,-500.0,0.00033328,7]
[338981974,1727099438507,-500.0,0.00033328,7]
[338981976,1727099438522,-500.0,0.00033328,7]
[338981979,1727099438537,-500.0,0.00033328,7]
[338981981,1727099438553,-500.0,0.00033328,7]
[338981984,1727099438569,-500.0,0.00033328,7]
[338981986,1727099438583,-500.0,0.00033328,7]
[338981989,1727099438598,-500.0,0.00033328,7]
[338981992,1727099438612,-500.0,0.00033328,7]
[338981994,1727099438627,-500.0,0.00033328,7]
[338981997,1727099438642,-554.85250553,0.00033328,7]
[338981999,1727099438657,-500.0,0.00033328,7]
[338982002,1727099438671,-3615.0313343,0.00033329,2]
[338982004,1727099438685,-211.27924282,0.00033655,120]
[338982110,1727099439866,-5785.38263261,0.00033655,120]
[338982112,1727099439875,-2516.05074027,0.00033655,120]
[338982114,1727099439884,-6783.67756594,0.00033872,2]
[338982116,1727099439893,-151.0,0.00033932,15]
[338982118,1727099439903,-182.16339231,0.00033973,2]
[338982120,1727099439912,-1000.0,0.00034,120]
[338982122,1727099439921,-197.98401813,0.00034072,7]
[338982124,1727099439930,-500.0,0.00034072,7]
[338982126,1727099439939,-500.0,0.00034072,7]
[338982128,1727099439952,-500.0,0.00034072,7]
[338982130,1727099439962,-189.84861414,0.00034072,7]
[338982132,1727099439971,-500.0,0.00034072,7]
[338982134,1727099439980,-500.0,0.00034072,7]
[338982136,1727099439990,-500.0,0.00034072,7]
[338982138,1727099439999,-352.93293365,0.00034072,7]
[338982140,1727099440009,-478.51737844,0.00034072,7]
[338982142,1727099440019,-500.0,0.00034072,7]
[338982144,1727099440028,-279.14911575,0.00034072,7]
[338982146,1727099440037,-500.0,0.00034072,7]
[338982148,1727099440046,-500.0,0.00034072,7]
[338982150,1727099440056,-500.0,0.00034072,7]
[338982152,1727099440065,-500.0,0.00034072,7]
[338982154,1727099440074,-500.0,0.00034072,7]
[338982156,1727099440084,-300.50730549,0.00034072,7]
[338982158,1727099440093,-500.0,0.00034072,7]
[338982160,1727099440102,-500.0,0.00034072,7]
[338982162,1727099440111,-600.0,0.00034072,7]
[338982164,1727099440121,-24362.70825,0.00034072,2]
[338982166,1727099440130,-96093.5748209,0.00034073,5]
[338982168,1727099440140,-7232.98805802,0.00034073,5]
[338982170,1727099440149,-1000.0,0.00034085,2]
[338982172,1727099440158,-182.1633923,0.00034085,2]
[338982174,1727099440167,-151.249146,0.00034093,14]
[338982176,1727099440177,-159.70308504,0.00034093,30]
[338982178,1727099440186,-26285.08439264,0.00034093,3]
[338982180,1727099440195,-48046.7874105,0.00034139,5]
[338982182,1727099440207,-3616.49402901,0.00034139,5]
[338982184,1727099440216,-272.52583162,0.00034148,21]
[338982186,1727099440225,-10426.04840095,0.00034149,2]
[338982188,1727099440235,-151.0,0.00034149,14]
[338982190,1727099440244,-151.0,0.00034149,14]
[338982191,1727099440253,-151.0,0.00034149,14]
[338982193,1727099440263,-473.63966,0.00034149,14]
[338982196,1727099440272,-312.7573,0.00034149,14]
[338982198,1727099440282,-473.63966,0.00034149,14]
[338982200,1727099440291,-312.7573,0.00034149,14]
[338982202,1727099440300,-1353.785763,0.00034149,14]
[338982204,1727099440309,-151.0,0.00034149,14]
[338982205,1727099440318,-1353.785763,0.00034149,14]
[338982215,1727099440327,-151.0,0.00034149,14]
[338982217,1727099440411,-151.0,0.00034149,14]
[338982219,1727099440420,-151.0,0.00034149,14]
[338982221,1727099440430,-151.0,0.00034149,14]
[338982223,1727099440439,-252.510807,0.00034149,14]
[338982225,1727099440451,-151.0,0.00034149,14]
[338982227,1727099440460,-151.0,0.00034149,14]
[338982229,1727099440469,-1173.595014,0.00034149,14]
[338982231,1727099440478,-151.0,0.00034149,14]
[338982233,1727099440487,-1173.595014,0.00034149,14]
[338982235,1727099440496,-151.0,0.00034149,14]
[338982237,1727099440506,-552.473152,0.00034149,14]
[338982239,1727099440515,-552.473152,0.00034149,14]
[338982241,1727099440524,-1272.881326,0.00034149,14]
[338982243,1727099440533,-1272.881326,0.00034149,14]
[338982245,1727099440542,-731.69384866,0.00034149,2]
[338982247,1727099440551,-1294.332785,0.00034149,14]
[338982249,1727099440560,-1294.332785,0.00034149,14]
[338982251,1727099440569,-262.480448,0.00034149,14]
[338982253,1727099440578,-262.480448,0.00034149,14]
[338982255,1727099440587,-291.292364,0.00034149,14]
[338982257,1727099440597,-2750.53008062,0.00034149,120]
[338982259,1727099440606,-48046.7874105,0.00034175,5]
[338982261,1727099440615,-3616.49402901,0.00034175,5]
[338982263,1727099440624,-151.0,0.00034185,14]
[338982265,1727099440633,-151.0,0.00034185,14]
[338982267,1727099440642,-151.0,0.00034185,14]
[338982269,1727099440651,-473.63966,0.00034185,14]
[338982271,1727099440660,-312.7573,0.00034185,14]
[338982273,1727099440669,-473.63966,0.00034185,14]
[338982275,1727099440678,-312.7573,0.00034185,14]
[338982277,1727099440687,-1353.785763,0.00034185,14]
[338982279,1727099440696,-151.0,0.00034185,14]
[338982281,1727099440706,-1353.785763,0.00034185,14]
[338982282,1727099440716,-151.0,0.00034185,14]
[338982285,1727099440725,-151.0,0.00034185,14]
[338982287,1727099440734,-2000.0,0.00034185,60]
[338982289,1727099440744,-2000.0,0.00034185,60]
[338982290,1727099440756,-2000.0,0.00034185,60]
[338982293,1727099440765,-2000.0,0.00034185,60]
[338982295,1727099440775,-2000.0,0.00034185,60]
[338982296,1727099440785,-2000.0,0.00034185,60]
[338982298,1727099440795,-782.523762,0.00034185,60]
[338982300,1727099440804,-151.0,0.00034185,14]
[338982302,1727099440813,-151.0,0.00034185,14]
[338982304,1727099440823,-151.0,0.00034185,14]
[338982306,1727099440834,-151.0,0.00034185,14]
[338982308,1727099440843,-1173.595014,0.00034185,14]
[338982310,1727099440852,-151.752825,0.00034185,14]
[338982312,1727099440862,-1173.595014,0.00034185,14]
[338982314,1727099440871,-151.0,0.00034185,14]
[338982316,1727099440880,-552.473152,0.00034185,14]
[338982318,1727099440889,-552.473152,0.00034185,14]
[338982320,1727099440898,-1272.881326,0.00034185,14]
[338982322,1727099440907,-1272.881326,0.00034185,14]
[338982324,1727099440916,-1294.332785,0.00034185,14]
[338982326,1727099440927,-1294.332785,0.00034185,14]
[338982328,1727099440936,-262.480448,0.00034185,14]
[338982330,1727099440946,-262.480448,0.00034185,14]
[338982332,1727099440955,-19478.03870576,0.00034185,5]
[338982335,1727099440968,-1949.88037749,0.00034185,5]
[338982337,1727099440979,-373.82130518,0.00034185,5]
[338982339,1727099440990,-1138.56768831,0.00034185,5]
[338982341,1727099441001,-2943.20231341,0.00034185,5]
[338982359,1727099441156,-37.37383128,0.00034185,5]
[338982361,1727099441167,-22125.90318907,0.00034185,5]
[338982363,1727099441176,-3616.49402901,0.00034185,5]
[338982365,1727099441189,-1145.218796,0.00034195,14]
[338982367,1727099441200,-1145.218796,0.00034195,14]
[338982369,1727099441209,-474.405306,0.00034195,14]
[338982371,1727099441218,-474.405306,0.00034195,14]
[338982373,1727099441228,-1652.767215,0.00034195,14]
[338982375,1727099441237,-1652.767215,0.00034195,14]
[338982377,1727099441246,-824.815623,0.00034195,14]
[338982379,1727099441255,-824.815623,0.00034195,14]
[338982381,1727099441264,-1108.793202,0.00034195,14]
[338982383,1727099441273,-1108.793202,0.00034195,14]
[338982385,1727099441283,-150.112233,0.000342,6]
[338982387,1727099441293,-150.112233,0.000342,7]
[338982390,1727099441302,-150.112233,0.000342,8]
[338982392,1727099441312,-151.0,0.00034205,14]
[338982394,1727099441321,-151.570728,0.00034205,14]
[338982396,1727099441330,-151.0,0.00034205,14]
[338982398,1727099441339,-151.0,0.00034205,14]
[338982400,1727099441348,-151.0,0.00034205,14]
[338982401,1727099441356,-315.989066,0.00034205,14]
[338982403,1727099441365,-315.989066,0.00034205,14]
[338982405,1727099441374,-1272.881326,0.00034215,14]
[338982407,1727099441383,-1272.881326,0.00034215,14]
[338982409,1727099441392,-1294.332785,0.00034215,14]
[338982411,1727099441402,-1294.332785,0.00034215,14]
[338982413,1727099441411,-262.480448,0.00034215,14]
[338982416,1727099441420,-262.480448,0.00034215,14]
[338982418,1727099441429,-7880.35301129,0.00034215,21]
[338982419,1727099441438,-2420.79130981,0.00034215,120]
[338982421,1727099441448,-48046.7874105,0.00034218,5]
[338982424,1727099441457,-10849.482087,0.00034218,5]
[338982426,1727099441466,-7232.98805802,0.00034219,5]
[338982428,1727099441475,-3616.49402901,0.00034219,5]
[338982430,1727099441485,-151.0,0.00034228,14]
[338982432,1727099441494,-151.0,0.00034228,14]
[338982434,1727099441503,-151.0,0.00034228,14]
[338982436,1727099441512,-473.63966,0.00034228,14]
[338982438,1727099441521,-312.7573,0.00034228,14]
[338982440,1727099441531,-473.63966,0.00034228,14]
[338982441,1727099441540,-312.7573,0.00034228,14]
[338982443,1727099441549,-1353.785763,0.00034228,14]
[338982445,1727099441558,-151.0,0.00034228,14]
[338982447,1727099441567,-1353.785763,0.00034228,14]
[338982449,1727099441576,-151.0,0.00034228,14]
[338982451,1727099441585,-151.0,0.00034228,14]
[338982453,1727099441594,-151.0,0.00034228,14]
[338982455,1727099441603,-151.0,0.00034228,14]
[338982457,1727099441612,-151.0,0.00034228,14]
[338982459,1727099441622,-1173.595014,0.00034228,14]
[338982461,1727099441631,-1173.595014,0.00034228,14]
[338982463,1727099441640,-151.0,0.00034228,14]
[338982465,1727099441649,-151.0,0.00034228,14]
[338982467,1727099441658,-552.473152,0.00034228,14]
[338982469,1727099441668,-552.473152,0.00034228,14]
[338982471,1727099441677,-552.473152,0.00034228,14]
[338982473,1727099441686,-552.473152,0.00034228,14]
[338982475,1727099441695,-1272.881326,0.00034228,14]
[338982477,1727099441705,-1272.881326,0.00034228,14]
[338982480,1727099441715,-1294.332785,0.00034228,14]
[338982482,1727099441724,-1294.332785,0.00034228,14]
[338982483,1727099441734,-262.480448,0.00034228,14]
[338982484,1727099441744,-262.480448,0.00034228,14]
[338982485,1727099441755,-3616.49402901,0.00034229,5]
[338982486,1727099441764,-300.830233,0.00034229,14]
[338982488,1727099441773,-151.0,0.00034229,14]
[338982497,1727099441783,-151.0,0.00034229,14]
[338982499,1727099441859,-275.346591,0.00034229,14]
[338982501,1727099441868,-473.63966,0.00034229,14]
[338982503,1727099441877,-473.63966,0.00034229,14]
[338982505,1727099441887,-312.7573,0.00034229,14]
[338982507,1727099441896,-312.7573,0.00034229,14]
[338982509,1727099441905,-473.63966,0.00034229,14]
[338982511,1727099441915,-473.63966,0.00034229,14]
[338982513,1727099441925,-312.7573,0.00034229,14]
[338982515,1727099441934,-312.7573,0.00034229,14]
[338982517,1727099441943,-1353.785763,0.00034229,14]
[338982519,1727099441954,-1353.785763,0.00034229,14]
[338982521,1727099441963,-151.0,0.00034229,14]
[338982523,1727099441972,-151.0,0.00034229,14]
[338982525,1727099441981,-1353.785763,0.00034229,14]
[338982527,1727099441990,-1353.785763,0.00034229,14]
[338982529,1727099442001,-151.0,0.00034229,14]
[338982531,1727099442010,-151.0,0.00034229,14]
[338982533,1727099442019,-151.0,0.00034229,14]
[338982535,1727099442028,-151.0,0.00034229,14]
[338982537,1727099442038,-151.0,0.00034229,14]
[338982539,1727099442048,-151.0,0.00034229,14]
[338982541,1727099442058,-151.0,0.00034229,14]
[338982543,1727099442067,-151.0,0.00034229,14]
[338982545,1727099442076,-151.0,0.00034229,14]
[338982547,1727099442085,-151.0,0.00034229,14]
[338982549,1727099442095,-151.671228,0.00034229,120]
[338982551,1727099442104,-1173.595014,0.00034229,14]
[338982553,1727099442113,-1173.595014,0.00034229,14]
[338982555,1727099442122,-1173.595014,0.00034229,14]
[338982557,1727099442131,-1173.595014,0.00034229,14]
[338982558,1727099442142,-151.0,0.00034229,14]
[338982560,1727099442151,-151.0,0.00034229,14]
[338982562,1727099442160,-552.473152,0.00034229,14]
[338982564,1727099442169,-552.473152,0.00034229,14]
[338982566,1727099442178,-552.473152,0.00034229,14]
[338982568,1727099442187,-552.473152,0.00034229,14]
[338982570,1727099442196,-1272.881326,0.00034229,14]
[338982573,1727099442207,-1272.881326,0.00034229,14]
[338982575,1727099442216,-1272.881326,0.00034229,14]
[338982577,1727099442226,-1272.881326,0.00034229,14]
[338982580,1727099442235,-1294.332785,0.00034229,14]
[338982582,1727099442245,-1294.332785,0.00034229,14]
[338982584,1727099442254,-1294.332785,0.00034229,14]
[338982586,1727099442263,-1294.332785,0.00034229,14]
[338982587,1727099442272,-262.480448,0.00034229,14]
[338982589,1727099442282,-262.480448,0.00034229,14]
[338982591,1727099442291,-262.480448,0.00034229,14]
[338982593,1727099442300,-262.480448,0.00034229,14]
[338982595,1727099442310,-151.0,0.00034239,14]
[338982597,1727099442319,-151.0,0.00034239,14]
[338982599,1727099442329,-240.900686,0.00034239,14]
[338982601,1727099442339,-240.900686,0.00034239,14]
[338982603,1727099442348,-240.900686,0.00034239,14]
[338982606,1727099442357,-240.900686,0.00034239,14]
[338982608,1727099442366,-151.0,0.00034239,14]
[338982610,1727099442376,-151.0,0.00034239,14]
[338982611,1727099442385,-151.0,0.00034239,14]
[338982613,1727099442395,-151.0,0.00034239,14]
[338982616,1727099442404,-151.0,0.00034239,14]
[338982618,1727099442413,-255.771443,0.00034239,14]
[338982621,1727099442422,-151.0,0.00034239,14]
[338982624,1727099442432,-151.0,0.00034239,14]
[338982625,1727099442442,-157.253221,0.00034239,14]
[338982628,1727099442454,-157.253221,0.00034239,14]
[338982631,1727099442464,-157.253221,0.00034239,14]
[338982634,1727099442472,-157.253221,0.00034239,14]
[338982637,1727099442481,-1377.06987,0.00034239,14]
[338982640,1727099442491,-1377.06987,0.00034239,14]
[338982643,1727099442500,-1377.06987,0.00034239,14]
[338982646,1727099442509,-1377.06987,0.00034239,14]
[338982649,1727099442518,-151.0,0.00034239,14]
[338982651,1727099442528,-151.0,0.00034239,14]
[338982653,1727099442537,-887.624623,0.00034239,14]
[338982655,1727099442547,-887.624623,0.00034239,14]
[338982657,1727099442557,-887.624623,0.00034239,14]
[338982659,1727099442566,-887.624623,0.00034239,14]
[338982661,1727099442575,-151.0,0.00034239,14]
[338982663,1727099442584,-151.0,0.00034239,14]
[338982665,1727099442593,-151.0,0.00034239,14]
[338982667,1727099442603,-1145.218796,0.00034239,14]
[338982669,1727099442612,-151.0,0.00034239,14]
[338982671,1727099442621,-1145.218796,0.00034239,14]
[338982673,1727099442630,-298.378217,0.00034239,14]
[338982675,1727099442639,-151.0,0.00034239,14]
[338982677,1727099442649,-1145.218796,0.00034239,14]
[338982679,1727099442658,-1145.218796,0.00034239,14]
[338982681,1727099442667,-151.0,0.00034239,14]
[338982683,1727099442676,-151.0,0.00034239,14]
[338982685,1727099442685,-151.0,0.00034239,14]
[338982687,1727099442695,-151.0,0.00034239,14]
[338982688,1727099442715,-151.0,0.00034239,14]
[338982690,1727099442724,-151.0,0.00034239,14]
[338982692,1727099442734,-474.405306,0.00034239,14]
[338982694,1727099442743,-474.405306,0.00034239,14]
[338982697,1727099442752,-474.405306,0.00034239,14]
[338982698,1727099442765,-474.405306,0.00034239,14]
[338982701,1727099442774,-1652.767215,0.00034239,14]
[338982703,1727099442783,-1652.767215,0.00034239,14]
[338982705,1727099442792,-1353.785763,0.00034239,14]
[338982706,1727099442802,-1652.767215,0.00034239,14]
[338982709,1727099442811,-1652.767215,0.00034239,14]
[338982711,1727099442820,-151.0,0.00034239,14]
[338982713,1727099442829,-1353.785763,0.00034239,14]
[338982715,1727099442839,-824.815623,0.00034239,14]
[338982717,1727099442850,-151.0,0.00034239,14]
[338982719,1727099442859,-824.815623,0.00034239,14]
[338982721,1727099442868,-824.815623,0.00034239,14]
[338982723,1727099442878,-824.815623,0.00034239,14]
[338982725,1727099442887,-151.0,0.00034239,14]
[338982727,1727099442896,-151.0,0.00034239,14]
[338982729,1727099442905,-151.0,0.00034239,14]
[338982731,1727099442915,-1173.595014,0.00034239,14]
[338982733,1727099442924,-1173.595014,0.00034239,14]
[338982735,1727099442933,-1108.793202,0.00034239,14]
[338982737,1727099442943,-1108.793202,0.00034239,14]
[338982739,1727099442957,-1108.793202,0.00034239,14]
[338982741,1727099442967,-1108.793202,0.00034239,14]
[338982744,1727099442976,-151.0,0.00034239,14]
[338982746,1727099442985,-552.473152,0.00034239,14]
[338982748,1727099442994,-552.473152,0.00034239,14]
[338982751,1727099443003,-1272.881326,0.00034239,14]
[338982753,1727099443012,-1272.881326,0.00034239,14]
[338982755,1727099443021,-1294.332785,0.00034239,14]
[338982757,1727099443031,-1294.332785,0.00034239,14]
[338982759,1727099443040,-206.34089414,0.00034239,14]
[338982783,1727099443267,-595.14,0.00034209,3]
[338982785,1727099443276,-56.13955386,0.00034239,14]
[338982787,1727099443285,-262.480448,0.00034239,14]
[338982789,1727099443294,-3616.49402901,0.00034239,5]
[338982791,1727099443304,-500.0,0.00034246,120]
[338982793,1727099443313,-500.0,0.00034246,120]
[338982795,1727099443322,-512.28831638,0.00034246,120]
[338982797,1727099443331,-153.495417,0.00034249,14]
[338982799,1727099443340,-276.801319,0.00034249,14]
[338982801,1727099443350,-151.0,0.00034249,14]
[338982803,1727099443359,-151.0,0.00034249,2]
[338982805,1727099443368,-151.0,0.00034249,14]
[338982807,1727099443377,-396.281908,0.00034249,14]
[338982809,1727099443386,-396.281908,0.00034249,14]
[338982811,1727099443395,-251.468765,0.00034249,14]
[338982813,1727099443404,-251.468765,0.00034249,14]
[338982815,1727099443413,-151.0,0.00034249,14]
[338982817,1727099443423,-151.0,0.00034249,7]
[338982819,1727099443432,-417.925106,0.00034249,14]
[338982821,1727099443441,-417.925106,0.00034249,14]
[338982823,1727099443452,-173.989584,0.00034249,14]
[338982825,1727099443461,-173.989584,0.00034249,14]
[338982827,1727099443471,-627.626363,0.00034249,2]
[338982829,1727099443480,-627.626363,0.00034249,2]
[338982831,1727099443489,-151.0,0.00034249,14]
[338982833,1727099443498,-151.0,0.00034249,14]
[338982835,1727099443508,-151.0,0.00034249,14]
[338982837,1727099443517,-151.0,0.00034249,14]
[338982839,1727099443526,-166.191559,0.00034249,14]
[338982841,1727099443535,-724.493041,0.00034249,14]
[338982843,1727099443544,-151.0,0.00034249,14]
[338982845,1727099443553,-151.0,0.00034249,14]
[338982847,1727099443562,-166.191559,0.00034249,14]
[338982849,1727099443571,-159.628112,0.00034249,14]
[338982851,1727099443580,-159.628112,0.00034249,14]
[338982853,1727099443589,-151.0,0.00034249,14]
[338982855,1727099443598,-151.0,0.00034249,14]
[338982856,1727099443607,-151.0,0.00034249,14]
[338982858,1727099443617,-151.0,0.00034249,14]
[338982860,1727099443626,-1807.382286,0.00034249,14]
[338982862,1727099443635,-1807.382286,0.00034249,14]
[338982864,1727099443645,-1807.382286,0.00034249,14]
[338982866,1727099443656,-1807.382286,0.00034249,14]
[338982869,1727099443666,-289.256012,0.00034249,14]
[338982871,1727099443675,-289.256012,0.00034249,14]
[338982872,1727099443684,-289.256012,0.00034249,14]
[338982874,1727099443694,-289.256012,0.00034249,14]
[338982877,1727099443707,-151.0,0.00034249,14]
[338982879,1727099443716,-151.0,0.00034249,14]
[338982881,1727099443726,-157.253221,0.00034249,14]
[338982883,1727099443736,-157.253221,0.00034249,14]
[338982885,1727099443746,-1377.06987,0.00034249,14]
[338982887,1727099443759,-1377.06987,0.00034249,14]
[338982889,1727099443768,-151.0,0.00034249,14]
[338982891,1727099443777,-887.624623,0.00034249,14]
[338982893,1727099443788,-887.624623,0.00034249,14]
[338982895,1727099443797,-151.0,0.00034249,14]
[338982897,1727099443807,-1145.218796,0.00034249,14]
[338982899,1727099443817,-151.0,0.00034249,14]
[338982901,1727099443826,-1145.218796,0.00034249,14]
[338982903,1727099443835,-151.0,0.00034249,14]
[338982905,1727099443845,-151.0,0.00034249,14]
[338982907,1727099443854,-260.735058,0.00034249,14]
[338982908,1727099443864,-151.0,0.00034249,14]
[338982910,1727099443873,-151.0,0.00034249,14]
[338982912,1727099443883,-474.405306,0.00034249,14]
[338982915,1727099443892,-474.405306,0.00034249,14]
[338982917,1727099443902,-473.63966,0.00034249,14]
[338982918,1727099443912,-473.63966,0.00034249,14]
[338982920,1727099443921,-312.7573,0.00034249,14]
[338982923,1727099443931,-312.7573,0.00034249,14]
[338982924,1727099443941,-473.63966,0.00034249,14]
[338982926,1727099443951,-473.63966,0.00034249,14]
[338982928,1727099443961,-312.7573,0.00034249,14]
[338982931,1727099443970,-312.7573,0.00034249,14]
[338982932,1727099443979,-1652.767215,0.00034249,14]
[338982934,1727099443988,-1353.785763,0.00034249,14]
[338982936,1727099443997,-1652.767215,0.00034249,14]
[338982938,1727099444007,-151.0,0.00034249,14]
[338982940,1727099444016,-1353.785763,0.00034249,14]
[338982942,1727099444026,-151.0,0.00034249,14]
[338982944,1727099444035,-824.815623,0.00034249,14]
[338982946,1727099444045,-824.815623,0.00034249,14]
[338982948,1727099444055,-151.0,0.00034249,14]
[338982951,1727099444064,-151.0,0.00034249,14]
[338982953,1727099444074,-151.0,0.00034249,14]
[338982955,1727099444083,-1173.595014,0.00034249,14]
[338982957,1727099444093,-1173.595014,0.00034249,14]
[338982959,1727099444102,-1108.793202,0.00034249,14]
[338982960,1727099444111,-1108.793202,0.00034249,14]
[338982963,1727099444122,-151.0,0.00034249,14]
[338982964,1727099444131,-552.473152,0.00034249,14]
[338982966,1727099444141,-552.473152,0.00034249,14]
[338982968,1727099444150,-1272.881326,0.00034249,14]
[338982970,1727099444160,-1272.881326,0.00034249,14]
[338982973,1727099444171,-1294.332785,0.00034249,14]
[338982975,1727099444181,-1294.332785,0.00034249,14]
[338982977,1727099444190,-262.480448,0.00034249,14]
[338982979,1727099444201,-262.480448,0.00034249,14]
[338982981,1727099444211,-417.925106,0.00034259,14]
[338982983,1727099444220,-417.925106,0.00034259,14]
[338982985,1727099444229,-627.626363,0.00034259,2]
[338982987,1727099444239,-627.626363,0.00034259,2]
[338982989,1727099444249,-151.0,0.00034259,14]
[338982991,1727099444259,-151.0,0.00034259,14]
[338982993,1727099444268,-166.191559,0.00034259,14]
[338982995,1727099444278,-724.493041,0.00034259,14]
[338982997,1727099444287,-166.191559,0.00034259,14]
[338982999,1727099444297,-159.628112,0.00034259,14]
[338983001,1727099444306,-159.628112,0.00034259,14]
[338983003,1727099444315,-151.0,0.00034259,14]
[338983005,1727099444325,-151.0,0.00034259,14]
[338983007,1727099444335,-151.0,0.00034259,14]
[338983009,1727099444344,-1807.382286,0.00034259,14]
[338983011,1727099444354,-1807.382286,0.00034259,14]
[338983013,1727099444364,-289.256012,0.00034259,14]
[338983015,1727099444373,-289.256012,0.00034259,14]
[338983017,1727099444383,-552.473152,0.00034259,14]
[338983019,1727099444392,-552.473152,0.00034259,14]
[338983020,1727099444401,-1272.881326,0.00034259,14]
[338983023,1727099444411,-1272.881326,0.00034259,14]
[338983031,1727099444479,-1294.332785,0.00034259,14]
[338983033,1727099444495,-1294.332785,0.00034259,14]
[338983035,1727099444505,-262.480448,0.00034259,14]
[338983037,1727099444516,-262.480448,0.00034259,14]
[338983039,1727099444525,-7232.98805802,0.0003426,5]
[338983041,1727099444535,-1353.785763,0.0003427,14]
[338983043,1727099444545,-151.0,0.0003427,14]
[338983045,1727099444555,-1353.785763,0.0003427,14]
[338983047,1727099444565,-192.135807,0.0003427,14]
[338983049,1727099444575,-151.0,0.0003427,14]
[338983051,1727099444585,-151.0,0.0003427,14]
[338983053,1727099444594,-151.0,0.0003427,14]
[338983055,1727099444603,-1173.595014,0.0003427,14]
[338983057,1727099444613,-1173.595014,0.0003427,14]
[338983059,1727099444623,-552.473152,0.0003427,14]
[338983061,1727099444632,-552.473154,0.0003427,14]
[338983063,1727099444642,-1272.881326,0.0003427,14]